fUSD/lending_fUSD_20250304
["ID","MTS","AMOUNT","RATE_DAILY","PERIOD"]
[355298790,1741060244067,-500.0,0.00012721,2]
[355298792,1741060244078,-270.574614,0.00012721,2]
[355298794,1741060244087,-2257.26,0.00012721,2]
[355298796,1741060244097,-500.0,0.00012721,2]
[355298798,1741060244107,-1527.71,0.00012721,2]
[355298800,1741060244116,-664.43,0.00012721,2]
[355298802,1741060244126,-681.92,0.00012721,2]
[355298804,1741060244135,-1429.74,0.00012721,2]
[355298806,1741060244145,-500.0,0.00012721,2]
[355298808,1741060244154,-1338.67,0.00012721,2]
[355298810,1741060244165,-854.33,0.00012721,2]
[355298812,1741060244175,-500.0,0.00012721,2]
[355298814,1741060244185,-500.0,0.00012721,2]
[355298816,1741060244195,-500.0,0.00012721,2]
[355298818,1741060244205,-151.0,0.00012721,2]
[355298820,1741060244215,-151.0,0.00012721,2]
[355298822,1741060244225,-500.0,0.00012721,2]
[355298824,1741060244235,-500.0,0.00012721,2]
[355298826,1741060244246,-1124.93,0.00012721,2]
[355298828,1741060244256,-151.0,0.00012721,2]
[355298830,1741060244266,-151.0,0.00012721,2]
[355298832,1741060244277,-645.34,0.00012721,2]
[355298834,1741060244286,-1064.6,0.00012721,2]
[355298836,1741060244296,-152.478687,0.00012721,2]
[355298838,1741060244306,-500.0,0.00012721,2]
[355298840,1741060244318,-1471.99,0.00012721,2]
[355298842,1741060244328,-1207.4,0.00012721,2]
[355298844,1741060244339,-402.06530084,0.00012721,2]
[355298846,1741060244349,-1826.56,0.00012721,2]
[355298848,1741060244360,-155.994251,0.00012721,2]
[355298850,1741060244369,-155.994251,0.00012721,2]
[355298852,1741060244379,-1792.07,0.00012721,2]
[355298854,1741060244389,-1538.827024,0.00012721,2]
[355298856,1741060244398,-710.701223,0.00012721,2]
[355298858,1741060244408,-1538.827024,0.00012721,2]
[355298860,1741060244420,-710.701223,0.00012721,2]
[355298862,1741060244430,-151.0,0.00012721,2]
[355298864,1741060244441,-151.0,0.00012721,2]
[355298866,1741060244451,-155.994251,0.00012721,2]
[355298868,1741060244460,-155.994251,0.00012721,2]
[355298870,1741060244470,-907.2,0.00012721,2]
[355298872,1741060244480,-1538.827024,0.00012721,2]
[355298875,1741060244490,-1538.827024,0.00012721,2]
[355298877,1741060244500,-710.701223,0.00012721,2]
[355298879,1741060244510,-710.701223,0.00012721,2]
[355298881,1741060244525,-508.65149121,0.00012721,2]
[355298883,1741060244534,-500.0,0.00012721,2]
[355298885,1741060244544,-956.08,0.00012721,2]
[355298887,1741060244554,-500.0,0.00012721,2]
[355298889,1741060244563,-151.0,0.00012721,2]
[355298891,1741060244573,-151.0,0.00012721,2]
[355298893,1741060244583,-1891.33,0.00012721,2]
[355298895,1741060244592,-529.40768617,0.00012721,2]
[355298897,1741060244602,-500.0,0.00012721,2]
[355298899,1741060244612,-3410.7,0.00012721,2]
[355298901,1741060244622,-778.22,0.00012721,2]
[355298903,1741060244632,-151.0,0.00012721,2]
[355298906,1741060244645,-151.0,0.00012721,2]
[355298908,1741060244656,-500.0,0.00012721,2]
[355298910,1741060244666,-676.91,0.00012721,2]
[355298912,1741060244675,-744.87,0.00012721,2]
[355298914,1741060244685,-500.0,0.00012721,2]
[355298916,1741060244695,-2871.44,0.00012721,2]
[355298918,1741060244704,-151.0,0.00012721,2]
[355298920,1741060244714,-151.0,0.00012721,2]
[355298922,1741060244723,-500.0,0.00012721,2]
[355298924,1741060244733,-151.0,0.00012721,2]
[355298926,1741060244743,-151.0,0.00012721,2]
[355298928,1741060244753,-1071.38,0.00012721,2]
[355298930,1741060244764,-1000.0,0.00012721,2]
[355298932,1741060244775,-1000.0,0.00012721,2]
[355298934,1741060244785,-1000.0,0.00012721,2]
[355298936,1741060244794,-1000.0,0.00012721,2]
[355298938,1741060244805,-1000.0,0.00012721,2]
[355298940,1741060244815,-1000.0,0.00012721,2]
[355298942,1741060244824,-1000.0,0.00012721,2]
[355298944,1741060244834,-1000.0,0.00012721,2]
[355298946,1741060244844,-1000.0,0.00012721,2]
[355298948,1741060244854,-248.0,0.00012721,2]
[355298950,1741060244865,-199.62849014,0.00012722,3]
[355298952,1741060244876,-559.78,0.00012722,2]
[355298954,1741060244886,-833.3,0.00012722,2]
[355298956,1741060244896,-581.74824619,0.00012722,2]
[355298958,1741060244906,-500.0,0.00012722,2]
[355298960,1741060244915,-657.53,0.00012722,2]
[355298962,1741060244925,-1032.51,0.00012722,2]
[355298964,1741060244935,-500.0,0.00012722,2]
[355298966,1741060244945,-500.0,0.00012722,2]
[355298968,1741060244955,-500.0,0.00012722,2]
[355298970,1741060244964,-500.0,0.00012722,2]
[355298972,1741060244974,-1135.07,0.00012722,2]
[355298974,1741060244987,-500.0,0.00012722,2]
[355298976,1741060244997,-616.79,0.00012722,2]
[355298978,1741060245007,-648.16,0.00012722,2]
[355298980,1741060245016,-151.0,0.00012722,2]
[355298982,1741060245026,-151.0,0.00012722,2]
[355298984,1741060245036,-151.0,0.00012722,2]
[355298986,1741060245046,-152.216183,0.00012722,2]
[355298988,1741060245055,-151.0,0.00012722,2]
[355298990,1741060245065,-151.0,0.00012722,2]
[355298992,1741060245076,-153.249577,0.00012722,2]
[355298994,1741060245087,-153.249577,0.00012722,2]
[355298996,1741060245096,-151.0,0.00012722,2]
[355298998,1741060245107,-151.0,0.00012722,2]
[355299001,1741060245119,-247.716812,0.00012722,2]
[355299002,1741060245129,-151.0,0.00012722,2]
[355299005,1741060245139,-247.716812,0.00012722,2]
[355299007,1741060245150,-151.0,0.00012722,2]
[355299009,1741060245161,-151.0,0.00012722,2]
[355299011,1741060245171,-151.0,0.00012722,2]
[355299013,1741060245181,-151.0,0.00012722,2]
[355299015,1741060245192,-175.738848,0.00012722,2]
[355299017,1741060245202,-175.738848,0.00012722,2]
[355299019,1741060245211,-270.574614,0.00012722,2]
[355299021,1741060245222,-270.574614,0.00012722,2]
[355299023,1741060245231,-200.0,0.00012723,2]
[355299025,1741060245241,-200.0,0.00012723,2]
[355299027,1741060245250,-266.60459,0.00012723,2]
[355299029,1741060245260,-168.0,0.00012723,3]
[355299031,1741060245270,-150.0,0.0001273,2]
[355299033,1741060245280,-16760.93433698,0.00012733,2]
[355299035,1741060245291,-10164.04417711,0.00012733,2]
[355299037,1741060245301,-150.0,0.00012745,2]
[355299039,1741060245310,-151.7,0.00012745,2]
[355299041,1741060245320,-223.19204293,0.00012765,2]
[355299043,1741060245330,-16760.93433698,0.00012766,2]
[355299045,1741060245340,-10164.04417711,0.00012766,2]
[355299047,1741060245351,-160.21251627,0.00012773,2]
[355299050,1741060245363,-187.17406844,0.00012789,2]
[355299051,1741060245373,-152.33001963,0.00012798,2]
[355299053,1741060245383,-16760.93433698,0.000128,2]
[355299055,1741060245392,-10164.04417711,0.000128,2]
[355299056,1741060245402,-68989.08219322,0.000128,2]
[355299057,1741060245412,-151.0,0.000128,2]
[355299058,1741060245421,-179.88306,0.000128,2]
[355299059,1741060245431,-151.0,0.000128,2]
[355299060,1741060245441,-151.0,0.000128,2]
[355299061,1741060245451,-151.0,0.000128,2]
[355299062,1741060245460,-151.0,0.000128,2]
[355299063,1741060245469,-220.481592,0.000128,2]
[355299064,1741060245479,-230.95048,0.000128,2]
[355299065,1741060245488,-230.95048,0.000128,2]
[355299066,1741060245497,-151.0,0.000128,2]
[355299067,1741060245507,-151.0,0.000128,2]
[355299069,1741060245516,-151.0,0.000128,2]
[355299071,1741060245525,-151.0,0.000128,2]
[355299073,1741060245535,-151.0,0.000128,2]
[355299075,1741060245544,-151.0,0.000128,2]
[355299077,1741060245554,-256.296309,0.000128,2]
[355299078,1741060245563,-256.296309,0.000128,2]
[355299080,1741060245572,-151.0,0.000128,2]
[355299082,1741060245582,-151.0,0.000128,2]
[355299084,1741060245591,-151.0,0.000128,2]
[355299086,1741060245601,-7167.835113,0.000128,2]
[355299088,1741060245612,-151.0,0.000128,2]
[355299090,1741060245622,-7167.835113,0.000128,2]
[355299092,1741060245632,-151.0,0.000128,2]
[355299094,1741060245642,-151.0,0.000128,2]
[355299096,1741060245652,-151.0,0.000128,2]
[355299098,1741060245661,-151.0,0.000128,2]
[355299100,1741060245671,-151.0,0.000128,2]
[355299102,1741060245680,-815.218788,0.000128,2]
[355299104,1741060245690,-815.218788,0.000128,2]
[355299106,1741060245700,-151.0,0.000128,2]
[355299109,1741060245710,-250.340322,0.000128,2]
[355299111,1741060245720,-151.0,0.000128,2]
[355299113,1741060245729,-151.0,0.000128,2]
[355299115,1741060245739,-151.0,0.000128,2]
[355299117,1741060245749,-151.0,0.000128,2]
[355299119,1741060245758,-151.0,0.000128,2]
[355299121,1741060245767,-155.994251,0.000128,2]
[355299123,1741060245776,-1538.827024,0.000128,2]
[355299125,1741060245786,-710.701223,0.000128,2]
[355299127,1741060245795,-151.0,0.000128,2]
[355299129,1741060245805,-155.994251,0.000128,2]
[355299131,1741060245815,-1538.827024,0.000128,2]
[355299133,1741060245824,-710.701223,0.000128,2]
[355299135,1741060245834,-151.0,0.000128,2]
[355299137,1741060245843,-151.0,0.000128,2]
[355299139,1741060245854,-151.0,0.000128,2]
[355299141,1741060245865,-151.0,0.000128,2]
[355299143,1741060245874,-4365.0,0.00012804,2]
[355299145,1741060245884,-150.0,0.00012805,2]
[355299147,1741060245893,-150.0,0.00012814,2]
[355299149,1741060245903,-150.0,0.00012823,2]
[355299151,1741060245913,-151.7,0.00012823,2]
[355299153,1741060245923,-150.0,0.00012832,2]
[355299155,1741060245932,-16760.93433698,0.00012833,2]
[355299157,1741060245942,-10164.04417711,0.00012833,2]
[355299159,1741060245952,-389.28701102,0.00012837,2]
[355299161,1741060245962,-200.0,0.0001285,2]
[355299163,1741060245973,-150.0,0.00012855,2]
[355299165,1741060245983,-921.88941541,0.00012866,2]
[355299167,1741060245996,-16760.93433698,0.00012867,2]
[355299169,1741060246006,-10164.04417711,0.00012867,2]
[355299171,1741060246016,-150.0,0.00012867,2]
[355299173,1741060246026,-161.35,0.0001287,2]
[355299175,1741060246037,-150.0,0.00012872,2]
[355299177,1741060246047,-150.0,0.00012876,2]
[355299179,1741060246057,-150.0,0.00012881,2]
[355299181,1741060246067,-194.105,0.00012886,2]
[355299183,1741060246078,-3012.514,0.00012886,2]
[355299185,1741060246087,-430.52991219,0.0001289,2]
[355299187,1741060246097,-200.0,0.00012896,2]
[355299189,1741060246106,-1000.0,0.00012898,2]
[355299191,1741060246118,-1796.19570584,0.000129,2]
[355299193,1741060246128,-777.81,0.000129,2]
[355299195,1741060246137,-16760.93433698,0.000129,2]
[355299197,1741060246146,-880.52,0.000129,2]
[355299199,1741060246156,-150.0,0.000129,2]
[355299201,1741060246166,-10164.04417711,0.000129,2]
[355299203,1741060246175,-152.04,0.000129,2]
[355299205,1741060246185,-777.67,0.000129,2]
[355299207,1741060246195,-880.12,0.000129,2]
[355299209,1741060246204,-150.0,0.000129,2]
[355299211,1741060246215,-440.21,0.000129,2]
[355299213,1741060246224,-150.0,0.000129,2]
[355299215,1741060246234,-440.21,0.000129,2]
[355299217,1741060246243,-150.0,0.000129,2]
[355299219,1741060246253,-448.9,0.000129,2]
[355299221,1741060246263,-150.0,0.000129,2]
[355299223,1741060246273,-440.21,0.000129,2]
[355299225,1741060246283,-171.32065869,0.000129,2]
[355299227,1741060246293,-150.0,0.000129,2]
[355299229,1741060246303,-151.7,0.00012901,2]
[355299231,1741060246313,-150.0,0.0001291,2]
[355299233,1741060246322,-150.0,0.00012924,2]
[355299235,1741060246332,-180.37124486,0.00012927,2]
[355299237,1741060246341,-150.0,0.00012931,2]
[355299239,1741060246351,-151.0,0.00012934,2]
[355299241,1741060246363,-151.97789,0.00012934,2]
[355299243,1741060246373,-150.0,0.00012943,2]
[355299245,1741060246384,-389.28701102,0.00012956,2]
[355299247,1741060246395,-150.0,0.00012956,2]
[355299268,1741060246580,-151.0,0.00012964,2]
[355299270,1741060246590,-151.0,0.00012964,2]
[355299272,1741060246600,-150.0,0.00012966,2]
[355299274,1741060246609,-150.83784909,0.00012968,10]
[355299276,1741060246621,-1000.0,0.0001297,2]
[355299277,1741060246631,-1432.15617306,0.0001297,2]
[355299279,1741060246641,-1000.0,0.0001297,2]
[355299281,1741060246650,-208.588599,0.00012971,2]
[355299283,1741060246659,-1535.69,0.00012971,2]
[355299285,1741060246670,-2409.92,0.00012971,2]
[355299287,1741060246679,-500.0,0.00012971,2]
[355299289,1741060246688,-1599.23,0.00012971,2]
[355299291,1741060246698,-512.39409148,0.00012971,2]
[355299293,1741060246708,-500.0,0.00012971,2]
[355299295,1741060246718,-2139.28,0.00012971,2]
[355299297,1741060246727,-1241.37,0.00012971,2]
[355299299,1741060246736,-625.18,0.00012971,2]
[355299301,1741060246746,-1997.56,0.00012971,2]
[355299303,1741060246755,-1483.55,0.00012971,2]
[355299305,1741060246764,-500.89431903,0.00012971,2]
[355299307,1741060246774,-500.0,0.00012971,2]
[355299309,1741060246784,-1256.08,0.00012971,2]
[355299311,1741060246793,-1085.81,0.00012971,2]
[355299313,1741060246802,-2465.75,0.00012971,2]
[355299315,1741060246811,-500.0,0.00012971,2]
[355299317,1741060246821,-1214.14,0.00012971,2]
[355299319,1741060246831,-670.23736903,0.00012971,2]
[355299321,1741060246840,-672.9386141,0.00012971,2]
[355299323,1741060246850,-152.338,0.00012971,2]
[355299325,1741060246859,-2031.0,0.00012971,2]
[355299327,1741060246872,-1277.0,0.00012971,2]
[355299329,1741060246881,-571.0,0.00012971,2]
[355299331,1741060246891,-640.0,0.00012971,2]
[355299333,1741060246900,-246.909,0.00012971,2]
[355299335,1741060246909,-1664.166,0.00012971,2]
[355299337,1741060246919,-786.0,0.00012971,2]
[355299339,1741060246928,-640.99,0.00012971,2]
[355299341,1741060246938,-941.984,0.00012971,2]
[355299343,1741060246947,-1269.0,0.00012971,2]
[355299345,1741060246956,-1468.502,0.00012971,2]
[355299347,1741060246965,-4136.467,0.00012971,2]
[355299349,1741060246977,-3929.0,0.00012971,2]
[355299351,1741060246992,-150.0,0.00012971,2]
[355299353,1741060247001,-1012.0,0.00012971,2]
[355299355,1741060247011,-201.095,0.00012971,2]
[355299357,1741060247020,-169.187,0.00012971,2]
[355299359,1741060247032,-585.79,0.00012972,2]
[355299361,1741060247041,-589.98,0.00012972,2]
[355299363,1741060247051,-500.0,0.00012972,2]
[355299365,1741060247061,-500.0,0.00012972,2]
[355299367,1741060247072,-733.36,0.00012972,2]
[355299369,1741060247082,-500.0,0.00012972,2]
[355299371,1741060247092,-591.4,0.00012972,2]
[355299374,1741060247102,-500.0,0.00012972,2]
[355299376,1741060247113,-817.88,0.00012972,2]
[355299378,1741060247123,-500.0,0.00012972,2]
[355299379,1741060247132,-500.0,0.00012972,2]
[355299382,1741060247142,-500.0,0.00012972,2]
[355299384,1741060247152,-500.0,0.00012972,2]
[355299386,1741060247161,-219.88366823,0.00012972,2]
[355299387,1741060247170,-500.0,0.00012972,2]
[355299389,1741060247180,-159.18,0.00012972,2]
[355299392,1741060247191,-521.77589509,0.00012972,2]
[355299394,1741060247201,-500.0,0.00012972,2]
[355299396,1741060247211,-25846.709397,0.00012972,2]
[355299398,1741060247220,-187.42846016,0.00012972,2]
[355299400,1741060247230,-500.0,0.00012972,2]
[355299402,1741060247239,-500.0,0.00012972,2]
[355299404,1741060247249,-839.93,0.00012972,2]
[355299405,1741060247259,-705.14,0.00012972,2]
[355299406,1741060247268,-1694.96,0.00012972,2]
[355299407,1741060247277,-3443.44,0.00012972,2]
[355299408,1741060247286,-500.0,0.00012972,2]
[355299409,1741060247296,-2172.65,0.00012972,2]
[355299410,1741060247305,-2755.76,0.00012972,2]
[355299411,1741060247315,-2179.34,0.00012972,2]
[355299412,1741060247324,-511.09741557,0.00012972,2]
[355299413,1741060247334,-16649.225294,0.00012972,2]
[355299414,1741060247343,-500.0,0.00012972,2]
[355299415,1741060247353,-538.37,0.00012972,2]
[355299416,1741060247364,-500.0,0.00012972,2]
[355299417,1741060247374,-500.0,0.00012972,2]
[355299418,1741060247384,-1454.23,0.00012972,2]
[355299419,1741060247394,-743.14,0.00012972,2]
[355299421,1741060247403,-653.924271,0.00012972,2]
[355299423,1741060247412,-2193.93,0.00012972,2]
[355299425,1741060247422,-513.15,0.00012972,2]
[355299427,1741060247432,-1504.19,0.00012972,2]
[355299429,1741060247442,-1095.23,0.00012972,2]
[355299431,1741060247452,-500.0,0.00012972,2]
[355299433,1741060247462,-873.6,0.00012972,2]
[355299435,1741060247471,-6729.38,0.00012972,2]
[355299437,1741060247481,-2417.92,0.00012972,2]
[355299439,1741060247490,-500.0,0.00012972,2]
[355299441,1741060247500,-2129.43,0.00012972,2]
[355299443,1741060247509,-500.0,0.00012972,2]
[355299445,1741060247518,-500.0,0.00012972,2]
[355299447,1741060247528,-151.0,0.00012972,2]
[355299449,1741060247538,-1813.95,0.00012972,2]
[355299450,1741060247547,-3020.68,0.00012972,2]
[355299452,1741060247556,-2050.58,0.00012972,2]
[355299454,1741060247565,-500.0,0.00012972,2]
[355299456,1741060247574,-2305.74,0.00012972,2]
[355299458,1741060247584,-500.0,0.00012972,2]
[355299460,1741060247594,-599.5,0.00012972,2]
[355299462,1741060247603,-317.202289,0.00012972,2]
[355299464,1741060247612,-2834.05,0.00012972,2]
[355299466,1741060247624,-881.64,0.00012972,2]
[355299468,1741060247633,-1175.48,0.00012972,2]
[355299470,1741060247643,-1304.85,0.00012972,2]
[355299472,1741060247653,-500.0,0.00012972,2]
[355299474,1741060247662,-911.87,0.00012972,2]
[355299476,1741060247671,-500.0,0.00012972,2]
[355299478,1741060247680,-2674.52,0.00012972,2]
[355299480,1741060247690,-6822.33,0.00012972,2]
[355299482,1741060247699,-1023.25,0.00012972,2]
[355299484,1741060247709,-2422.71,0.00012972,2]
[355299486,1741060247719,-2371.43,0.00012972,2]
[355299488,1741060247730,-155.994251,0.00012972,2]
[355299490,1741060247739,-500.0,0.00012972,2]
[355299492,1741060247749,-500.0,0.00012972,2]
[355299494,1741060247759,-151.0,0.00012972,2]
[355299496,1741060247768,-640.33431526,0.00012972,2]
[355299498,1741060247779,-155.994251,0.00012972,2]
[355299500,1741060247788,-716.3,0.00012972,2]
[355299502,1741060247798,-1590.15,0.00012972,2]
[355299504,1741060247808,-500.0,0.00012972,2]
[355299506,1741060247817,-508.28,0.00012972,2]
[355299508,1741060247827,-3758.29,0.00012972,2]
[355299510,1741060247837,-677.54,0.00012972,2]
[355299512,1741060247846,-17049.82,0.00012972,2]
[355299514,1741060247856,-1303.24,0.00012972,2]
[355299516,1741060247870,-500.0,0.00012972,2]
[355299518,1741060247879,-295.06,0.00012972,2]
[355299520,1741060247889,-2257.13,0.00012972,2]
[355299522,1741060247900,-500.0,0.00012972,2]
[355299524,1741060247911,-500.0,0.00012972,2]
[355299526,1741060247922,-3134.8,0.00012972,2]
[355299528,1741060247932,-622.47,0.00012972,2]
[355299530,1741060247942,-500.0,0.00012972,2]
[355299532,1741060247952,-649.8,0.00012972,2]
[355299534,1741060247961,-424.95217935,0.00012972,2]
[355299536,1741060247971,-500.0,0.00012972,2]
[355299538,1741060247982,-151.0,0.00012972,2]
[355299540,1741060247993,-7919.18,0.00012972,2]
[355299542,1741060248004,-500.0,0.00012972,2]
[355299544,1741060248014,-500.0,0.00012972,2]
[355299546,1741060248024,-151.0,0.00012972,2]
[355299548,1741060248035,-500.0,0.00012972,2]
[355299550,1741060248045,-642.46,0.00012972,2]
[355299552,1741060248055,-151.0,0.00012972,2]
[355299553,1741060248066,-2286.16,0.00012972,2]
[355299556,1741060248078,-500.0,0.00012972,2]
[355299557,1741060248087,-666.0,0.00012972,2]
[355299559,1741060248098,-289.984777,0.00012973,2]
[355299561,1741060248108,-151.0,0.00012973,2]
[355299563,1741060248123,-296.811292,0.00012973,2]
[355299565,1741060248133,-151.0,0.00012973,2]
[355299567,1741060248143,-151.0,0.00012973,2]
[355299569,1741060248153,-230.95048,0.00012973,2]
[355299571,1741060248164,-230.95048,0.00012973,2]
[355299573,1741060248174,-500.0,0.00012973,2]
[355299575,1741060248183,-1087.23,0.00012973,2]
[355299577,1741060248193,-151.0,0.00012973,2]
[355299579,1741060248204,-902.75,0.00012973,2]
[355299581,1741060248214,-500.0,0.00012973,2]
[355299583,1741060248226,-500.0,0.00012973,2]
[355299585,1741060248236,-1221.97,0.00012973,2]
[355299587,1741060248246,-932.62,0.00012973,2]
[355299588,1741060248256,-1396.02,0.00012973,2]
[355299589,1741060248265,-151.0,0.00012973,2]
[355299591,1741060248275,-832.41,0.00012973,2]
[355299593,1741060248284,-151.0,0.00012973,2]
[355299594,1741060248294,-704.89,0.00012973,2]
[355299596,1741060248304,-788.56,0.00012973,2]
[355299597,1741060248314,-711.2,0.00012973,2]
[355299599,1741060248325,-1253.45,0.00012973,2]
[355299600,1741060248334,-935.4,0.00012973,2]
[355299601,1741060248344,-151.0,0.00012973,2]
[355299603,1741060248354,-500.0,0.00012973,2]
[355299604,1741060248363,-626.76,0.00012973,2]
[355299606,1741060248378,-153.249577,0.00012973,2]
[355299608,1741060248387,-500.0,0.00012973,2]
[355299609,1741060248398,-153.249577,0.00012973,2]
[355299611,1741060248407,-151.0,0.00012973,2]
[355299612,1741060248417,-151.0,0.00012973,2]
[355299614,1741060248427,-1057.59,0.00012973,2]
[355299615,1741060248436,-151.0,0.00012973,2]
[355299617,1741060248445,-151.0,0.00012973,2]
[355299619,1741060248455,-247.716812,0.00012973,2]
[355299620,1741060248464,-151.0,0.00012973,2]
[355299622,1741060248474,-151.0,0.00012973,2]
[355299623,1741060248483,-711.32,0.00012973,2]
[355299625,1741060248493,-247.716812,0.00012973,2]
[355299626,1741060248505,-151.0,0.00012973,2]
[355299628,1741060248515,-151.0,0.00012973,2]
[355299629,1741060248525,-500.0,0.00012973,2]
[355299631,1741060248534,-153.251169,0.00012973,2]
[355299633,1741060248544,-1363.24,0.00012973,2]
[355299634,1741060248554,-799.26,0.00012973,2]
[355299635,1741060248564,-152.75531,0.00012973,2]
[355299637,1741060248573,-1378.26,0.00012973,2]
[355299639,1741060248583,-748.77,0.00012973,2]
[355299640,1741060248593,-500.0,0.00012973,2]
[355299642,1741060248603,-151.0,0.00012973,2]
[355299643,1741060248613,-1429.96,0.00012973,2]
[355299645,1741060248627,-500.0,0.00012973,2]
[355299647,1741060248637,-617.35,0.00012973,2]
[355299649,1741060248648,-476.89246287,0.00012973,2]
[355299650,1741060248658,-151.0,0.00012973,2]
[355299652,1741060248668,-151.0,0.00012973,2]
[355299653,1741060248678,-838.7,0.00012973,2]
[355299655,1741060248688,-151.0,0.00012973,2]
[355299657,1741060248698,-237.427814,0.00012973,2]
[355299658,1741060248709,-151.0,0.00012973,2]
[355299660,1741060248719,-1755.23,0.00012973,2]
[355299662,1741060248730,-592.63,0.00012973,2]
[355299663,1741060248740,-500.0,0.00012973,2]
[355299665,1741060248750,-964.54,0.00012973,2]
[355299666,1741060248760,-151.0,0.00012973,2]
[355299668,1741060248771,-796.52,0.00012973,2]
[355299670,1741060248782,-1339.67,0.00012973,2]
[355299671,1741060248792,-256.296309,0.00012973,2]
[355299673,1741060248804,-645.06,0.00012973,2]
[355299675,1741060248815,-256.296309,0.00012973,2]
[355299676,1741060248825,-766.09,0.00012973,2]
[355299678,1741060248835,-245.733579,0.00012973,2]
[355299679,1741060248845,-1517.99,0.00012973,2]
[355299681,1741060248856,-804.92,0.00012973,2]
[355299683,1741060248871,-708.04,0.00012973,2]
[355299684,1741060248883,-1184.35,0.00012973,2]
[355299686,1741060248893,-151.0,0.00012973,2]
[355299687,1741060248904,-7167.835113,0.00012973,2]
[355299689,1741060248915,-730.99,0.00012973,2]
[355299691,1741060248926,-152.520204,0.00012973,2]
[355299692,1741060248935,-1295.02,0.00012973,2]
[355299694,1741060248946,-151.0,0.00012973,2]
[355299695,1741060248955,-7167.835113,0.00012973,2]
[355299697,1741060248965,-151.0,0.00012973,2]
[355299709,1741060249148,-151.0,0.00012973,2]
[355299710,1741060249159,-926.64,0.00012973,2]
[355299712,1741060249169,-613.26,0.00012973,2]
[355299714,1741060249180,-500.0,0.00012973,2]
[355299715,1741060249190,-175.738848,0.00012973,2]
[355299717,1741060249199,-175.738848,0.00012973,2]
[355299718,1741060249210,-500.0,0.00012973,2]
[355299720,1741060249219,-151.0,0.00012973,2]
[355299722,1741060249230,-175.738848,0.00012973,2]
[355299723,1741060249240,-175.738848,0.00012973,2]
[355299725,1741060249249,-151.0,0.00012973,2]
[355299727,1741060249259,-1519.0,0.00012973,2]
[355299728,1741060249268,-510.64,0.00012973,2]
[355299730,1741060249278,-1653.37,0.00012973,2]
[355299731,1741060249287,-637.39,0.00012973,2]
[355299733,1741060249298,-1935.97,0.00012973,2]
[355299735,1741060249308,-3808.64,0.00012973,2]
[355299736,1741060249318,-795.8,0.00012973,2]
[355299738,1741060249327,-500.0,0.00012973,2]
[355299740,1741060249338,-2032.25,0.00012973,2]
[355299742,1741060249348,-1603.59,0.00012973,2]
[355299744,1741060249358,-815.218788,0.00012973,2]
[355299746,1741060249369,-1473.74,0.00012973,2]
[355299748,1741060249380,-1439.87,0.00012973,2]
[355299749,1741060249390,-21808.51,0.00012973,2]
[355299751,1741060249401,-815.218788,0.00012973,2]
[355299753,1741060249411,-595.31,0.00012973,2]